[Event "*** Titled Tuesday Blitz"]
[Site "Chess.com"]
[Date "2020.05.19"]
[Round "2"]
[White "djamir"]
[Black "chessplayer9919"]
[Result "1-0"]
[WhiteElo "2745"]
[BlackElo "2494"]
[TimeControl "180+1"]
[EndTime "12:18:50 PDT"]
[Termination "djamir won on time"]

1. c4 {[%clk 0:03:00.9]} 1... e5 {[%clk 0:02:59.5]} 2. Nc3 {[%clk 0:03:00.5]}
2... Nf6 {[%clk 0:02:59.4]} 3. Nf3 {[%clk 0:03:00.7]} 3... Nc6 {[%clk 0:02:59]}
4. d4 {[%clk 0:03:00.7]} 4... e4 {[%clk 0:02:57]} 5. Ng5 {[%clk 0:02:58.1]} 5...
Bb4 {[%clk 0:02:53.3]} 6. e3 {[%clk 0:02:45]} 6... h6 {[%clk 0:02:45.2]} 7. Nh3
{[%clk 0:02:44.4]} 7... d5 {[%clk 0:02:26.9]} 8. Nf4 {[%clk 0:02:41.3]} 8...
dxc4 {[%clk 0:02:11.8]} 9. Bxc4 {[%clk 0:02:42.2]} 9... O-O {[%clk 0:02:08.3]}
10. O-O {[%clk 0:02:39.9]} 10... Bd6 {[%clk 0:02:06.8]} 11. g3 {[%clk
0:02:30.9]} 11... Bxf4 {[%clk 0:01:57.4]} 12. gxf4 {[%clk 0:02:16.9]} 12... Bh3
{[%clk 0:01:49.1]} 13. Be2 {[%clk 0:02:02.1]} 13... Qd7 {[%clk 0:01:40.4]} 14.
Re1 {[%clk 0:01:59]} 14... Ne7 {[%clk 0:01:37.4]} 15. f3 {[%clk 0:01:48.1]}
15... exf3 {[%clk 0:01:33]} 16. Bxf3 {[%clk 0:01:49]} 16... Nf5 {[%clk
0:01:31.6]} 17. Bd2 {[%clk 0:01:31.7]} 17... Rfe8 {[%clk 0:01:15.5]} 18. Qa4
{[%clk 0:01:27.4]} 18... c6 {[%clk 0:01:05.9]} 19. Qd1 {[%clk 0:00:54.7]} 19...
Nh4 {[%clk 0:00:56.1]} 20. Qe2 {[%clk 0:00:51.2]} 20... Qf5 {[%clk 0:00:46.1]}
21. e4 {[%clk 0:00:38.4]} 21... Qg6+ {[%clk 0:00:41.2]} 22. Kh1 {[%clk
0:00:38.3]} 22... Nxf3 {[%clk 0:00:28.1]} 23. Qxf3 {[%clk 0:00:36.4]} 23... Bg4
{[%clk 0:00:26.9]} 24. Qg2 {[%clk 0:00:36.6]} 24... Rad8 {[%clk 0:00:24]} 25. h3
{[%clk 0:00:21.6]} 25... Qh5 {[%clk 0:00:20.3]} 26. Kh2 {[%clk 0:00:20.7]} 26...
Rxd4 {[%clk 0:00:20.3]} 27. Be3 {[%clk 0:00:21.1]} 27... Rd3 {[%clk 0:00:17.9]}
28. e5 {[%clk 0:00:18.9]} 28... Nd5 {[%clk 0:00:09.3]} 29. Nxd5 {[%clk 0:00:19]}
29... cxd5 {[%clk 0:00:05.5]} 30. Qxg4 {[%clk 0:00:19.4]} 30... Qxg4 {[%clk
0:00:04.1]} 31. hxg4 {[%clk 0:00:20.3]} 31... d4 {[%clk 0:00:05]} 32. Bg1 {[%clk
0:00:17]} 32... Rd2+ {[%clk 0:00:05.3]} 33. Kg3 {[%clk 0:00:17.5]} 33... d3
{[%clk 0:00:02.6]} 34. Rad1 {[%clk 0:00:17]} 34... Rxb2 {[%clk 0:00:02]} 35.
Bxa7 {[%clk 0:00:17.1]} 35... Rxa2 {[%clk 0:00:02.9]} 36. Be3 {[%clk 0:00:17.2]}
36... Rd8 {[%clk 0:00:02.5]} 37. Rd2 {[%clk 0:00:16.9]} 37... Ra4 {[%clk
0:00:02.1]} 38. Rb1 {[%clk 0:00:16.5]} 38... Rd7 {[%clk 0:00:02.3]} 39. Kf3
{[%clk 0:00:16.7]} 39... g6 {[%clk 0:00:02.3]} 40. Rb6 {[%clk 0:00:16.6]} 40...
Kg7 {[%clk 0:00:02.2]} 41. f5 {[%clk 0:00:17.1]} 41... h5 {[%clk 0:00:01.3]} 42.
f6+ {[%clk 0:00:16.4]} 1-0

[Event "*** Titled Tuesday Blitz"]
[Site "Chess.com"]
[Date "2020.05.19"]
[Round "2"]
[White "Mitronych"]
[Black "marszach123"]
[Result "1-0"]
[WhiteElo "2421"]
[BlackElo "2178"]
[TimeControl "180+1"]
[EndTime "12:18:50 PDT"]
[Termination "Mitronych won on time"]

1. e4 {[%clk 0:03:00.9]} 1... c5 {[%clk 0:03:00]} 2. Nc3 {[%clk 0:03:00.9]} 2...
Nc6 {[%clk 0:02:58.9]} 3. Nf3 {[%clk 0:03:01.8]} 3... e5 {[%clk 0:02:57.1]} 4.
Bc4 {[%clk 0:03:00.6]} 4... d6 {[%clk 0:02:52.3]} 5. d3 {[%clk 0:03:00.9]} 5...
Be7 {[%clk 0:02:47.3]} 6. Nd5 {[%clk 0:02:56.7]} 6... Nf6 {[%clk 0:02:44.9]} 7.
c3 {[%clk 0:02:54.5]} 7... O-O {[%clk 0:02:41.1]} 8. Nxe7+ {[%clk 0:02:51.8]}
8... Qxe7 {[%clk 0:02:35.4]} 9. Bg5 {[%clk 0:02:51.8]} 9... Be6 {[%clk
0:02:32.3]} 10. Bb3 {[%clk 0:02:49.4]} 10... b5 {[%clk 0:02:23.7]} 11. O-O
{[%clk 0:02:46.1]} 11... h6 {[%clk 0:02:17.5]} 12. Bh4 {[%clk 0:02:45]} 12... g5
{[%clk 0:02:05.9]} 13. Nxg5 {[%clk 0:02:44.8]} 13... hxg5 {[%clk 0:02:05.3]} 14.
Bxg5 {[%clk 0:02:45.7]} 14... Bxb3 {[%clk 0:02:00.2]} 15. Qf3 {[%clk 0:02:45.5]}
15... Kg7 {[%clk 0:01:56.8]} 16. axb3 {[%clk 0:02:29.7]} 16... Qe6 {[%clk
0:01:56.8]} 17. h3 {[%clk 0:02:30.1]} 17... Rg8 {[%clk 0:01:48.9]} 18. Ra6
{[%clk 0:02:25.6]} 18... Nb8 {[%clk 0:01:36]} 19. Ra5 {[%clk 0:02:16.4]} 19...
a6 {[%clk 0:01:35]} 20. Qg3 {[%clk 0:02:05.5]} 20... Kf8 {[%clk 0:01:32.5]} 21.
f4 {[%clk 0:02:05.2]} 21... exf4 {[%clk 0:01:15.1]} 22. Bxf4 {[%clk 0:01:50.7]}
22... Rxg3 {[%clk 0:01:13.1]} 23. Bxg3 {[%clk 0:01:49.9]} 23... Nc6 {[%clk
0:01:09.8]} 24. Raa1 {[%clk 0:01:49.6]} 24... Ne5 {[%clk 0:01:04]} 25. Rf5
{[%clk 0:01:49.8]} 25... Nxd3 {[%clk 0:00:58.2]} 26. Raf1 {[%clk 0:01:49.1]}
26... Nxe4 {[%clk 0:00:53.9]} 27. Bh4 {[%clk 0:01:49.1]} 27... Ne5 {[%clk
0:00:40]} 28. Rxe5 {[%clk 0:01:44.8]} 28... Qxe5 {[%clk 0:00:25.3]} 29. Re1
{[%clk 0:01:44.3]} 29... d5 {[%clk 0:00:23.3]} 30. Bf2 {[%clk 0:01:42.8]} 30...
Qd6 {[%clk 0:00:18.1]} 31. Be3 {[%clk 0:01:41.8]} 31... Ke7 {[%clk 0:00:17.2]}
32. Rf1 {[%clk 0:01:36.6]} 32... Rg8 {[%clk 0:00:13.7]} 33. Bf4 {[%clk
0:01:36.6]} 33... Qg6 {[%clk 0:00:12.1]} 34. g4 {[%clk 0:01:36.2]} 34... f5
{[%clk 0:00:10.8]} 35. Kg2 {[%clk 0:01:33.3]} 35... fxg4 {[%clk 0:00:10.8]} 36.
h4 {[%clk 0:01:34.1]} 36... Qh5 {[%clk 0:00:09.9]} 37. c4 {[%clk 0:01:25.2]}
37... Qxh4 {[%clk 0:00:08.3]} 38. cxd5 {[%clk 0:01:16.9]} 38... Qh2+ {[%clk
0:00:08.5]} 39. Bxh2 {[%clk 0:01:16.3]} 39... g3 {[%clk 0:00:07]} 40. Bg1 {[%clk
0:01:16.5]} 40... Kd6 {[%clk 0:00:06.8]} 41. Re1 {[%clk 0:01:16.4]} 41... Kxd5
{[%clk 0:00:05.6]} 42. b4 {[%clk 0:01:17.3]} 42... cxb4 {[%clk 0:00:04.4]} 43.
Rd1+ {[%clk 0:01:18.2]} 43... Ke5 {[%clk 0:00:03.5]} 44. Rc1 {[%clk 0:01:19.1]}
44... Nd6 {[%clk 0:00:01.9]} 45. Re1+ {[%clk 0:01:20]} 45... Kd5 {[%clk
0:00:01.8]} 46. Rd1+ {[%clk 0:01:20.9]} 46... Kc6 {[%clk 0:00:02.2]} 47. Rc1+
{[%clk 0:01:21.8]} 47... Nc4 {[%clk 0:00:02.3]} 48. Rd1 {[%clk 0:01:22.7]} 48...
Kc7 {[%clk 0:00:01.8]} 49. b3 {[%clk 0:01:22]} 49... Kb7 {[%clk 0:00:02.1]} 50.
Rc1 {[%clk 0:01:22.9]} 50... Nd6 {[%clk 0:00:01.8]} 51. Rd1 {[%clk 0:01:19.9]}
51... Nf5 {[%clk 0:00:01.8]} 52. Rd7+ {[%clk 0:01:19.1]} 52... Kc6 {[%clk
0:00:01.2]} 53. Rh7 {[%clk 0:01:19.7]} 53... Nh4+ {[%clk 0:00:01.2]} 54. Rxh4
{[%clk 0:01:19.8]} 54... Rd8 {[%clk 0:00:01.4]} 55. Rxb4 {[%clk 0:01:18.8]}
55... Rd3 {[%clk 0:00:01.4]} 56. Rg4 {[%clk 0:01:14.4]} 56... a5 {[%clk
0:00:01.8]} 57. Rg6+ {[%clk 0:01:14.2]} 57... Kd5 {[%clk 0:00:02.3]} 58. Rg5+
{[%clk 0:01:14]} 58... Kc6 {[%clk 0:00:02.2]} 59. Rc5+ {[%clk 0:01:14.4]} 59...
Kb7 {[%clk 0:00:01.7]} 60. Rxb5+ {[%clk 0:01:15.3]} 60... Ka6 {[%clk 0:00:02.2]}
61. Rb6+ {[%clk 0:01:15.9]} 1-0

[Event "*** Titled Tuesday Blitz"]
[Site "Chess.com"]
[Date "2020.05.19"]
[Round "2"]
[White "emiliocordova"]
[Black "DenishevM"]
[Result "0-1"]
[WhiteElo "2802"]
[BlackElo "2534"]
[TimeControl "180+1"]
[EndTime "12:18:51 PDT"]
[Termination "DenishevM won on time"]

1. d4 {[%clk 0:03:00.9]} 1... Nf6 {[%clk 0:02:59.2]} 2. Nf3 {[%clk 0:03:01.8]}
2... e6 {[%clk 0:02:59.1]} 3. c4 {[%clk 0:03:02.3]} 3... b6 {[%clk 0:02:58.1]}
4. g3 {[%clk 0:03:02.7]} 4... Bb7 {[%clk 0:02:58]} 5. Bg2 {[%clk 0:03:02.9]}
5... Bb4+ {[%clk 0:02:58.1]} 6. Nc3 {[%clk 0:03:01.3]} 6... O-O {[%clk 0:02:57]}
7. O-O {[%clk 0:03:00.9]} 7... Bxc3 {[%clk 0:02:51.5]} 8. bxc3 {[%clk
0:03:01.8]} 8... d6 {[%clk 0:02:52.3]} 9. a4 {[%clk 0:03:02]} 9... Nc6 {[%clk
0:02:49.1]} 10. Nd2 {[%clk 0:02:57.3]} 10... Na5 {[%clk 0:02:43.7]} 11. e4
{[%clk 0:02:55.8]} 11... e5 {[%clk 0:02:42]} 12. Re1 {[%clk 0:02:46]} 12... Re8
{[%clk 0:02:38.2]} 13. f3 {[%clk 0:02:45.5]} 13... Ba6 {[%clk 0:02:19]} 14. Bf1
{[%clk 0:02:41.8]} 14... Qd7 {[%clk 0:02:14.1]} 15. Ba3 {[%clk 0:02:24.1]} 15...
Rad8 {[%clk 0:02:00.5]} 16. Bb4 {[%clk 0:02:17.4]} 16... Nc6 {[%clk 0:01:53.6]}
17. d5 {[%clk 0:02:14.9]} 17... Ne7 {[%clk 0:01:32.3]} 18. a5 {[%clk 0:02:04.9]}
18... b5 {[%clk 0:01:32.6]} 19. c5 {[%clk 0:01:44.3]} 19... dxc5 {[%clk
0:01:29.5]} 20. Bxc5 {[%clk 0:01:44.2]} 20... Nc8 {[%clk 0:01:27.7]} 21. Be3
{[%clk 0:01:39.5]} 21... c6 {[%clk 0:01:21.3]} 22. dxc6 {[%clk 0:01:31.6]} 22...
Qxc6 {[%clk 0:01:21.2]} 23. Qb3 {[%clk 0:01:28.7]} 23... Nd6 {[%clk 0:01:12.4]}
24. Bxa7 {[%clk 0:01:23.6]} 24... b4 {[%clk 0:00:52.4]} 25. cxb4 {[%clk
0:01:01.2]} 25... Bxf1 {[%clk 0:00:52]} 26. Nxf1 {[%clk 0:00:58.6]} 26... Nb5
{[%clk 0:00:50.8]} 27. Bb6 {[%clk 0:00:53.2]} 27... Rd7 {[%clk 0:00:47.4]} 28.
Rac1 {[%clk 0:00:44.5]} 28... Qb7 {[%clk 0:00:47.4]} 29. Red1 {[%clk 0:00:42.2]}
29... h5 {[%clk 0:00:40.5]} 30. Ne3 {[%clk 0:00:41.9]} 30... Rc8 {[%clk
0:00:31.6]} 31. Rxc8+ {[%clk 0:00:34.2]} 31... Qxc8 {[%clk 0:00:31.2]} 32. Bc5
{[%clk 0:00:28.8]} 32... Nd4 {[%clk 0:00:21.1]} 33. Bxd4 {[%clk 0:00:15]} 33...
exd4 {[%clk 0:00:21.8]} 34. Nf5 {[%clk 0:00:14.7]} 34... Rc7 {[%clk 0:00:10.8]}
35. Nxd4 {[%clk 0:00:07.9]} 35... Rc3 {[%clk 0:00:10.8]} 36. Qb2 {[%clk
0:00:06.8]} 36... h4 {[%clk 0:00:10.6]} 37. Qd2 {[%clk 0:00:00.9]} 37... hxg3
{[%clk 0:00:10.4]} 0-1

[Event "*** Titled Tuesday Blitz"]
[Site "Chess.com"]
[Date "2020.05.19"]
[Round "2"]
[White "SharapovEvgeny"]
[Black "Nellichka"]
[Result "1-0"]
[WhiteElo "2369"]
[BlackElo "1996"]
[TimeControl "180+1"]
[EndTime "12:18:51 PDT"]
[Termination "SharapovEvgeny won on time"]

1. e4 {[%clk 0:02:59.3]} 1... e6 {[%clk 0:02:58.8]} 2. d4 {[%clk 0:02:58.6]}
2... d5 {[%clk 0:02:56.4]} 3. Nc3 {[%clk 0:02:58.4]} 3... Bb4 {[%clk 0:02:55.2]}
4. e5 {[%clk 0:02:58.3]} 4... c5 {[%clk 0:02:54.4]} 5. a3 {[%clk 0:02:57.7]}
5... Bxc3+ {[%clk 0:02:53.4]} 6. bxc3 {[%clk 0:02:57.5]} 6... Ne7 {[%clk
0:02:53.4]} 7. Nf3 {[%clk 0:02:57.3]} 7... Qa5 {[%clk 0:02:51.1]} 8. Bd2 {[%clk
0:02:56.4]} 8... Nbc6 {[%clk 0:02:45.1]} 9. Be2 {[%clk 0:02:54.8]} 9... Qa4
{[%clk 0:02:34]} 10. Qb1 {[%clk 0:02:50.5]} 10... a6 {[%clk 0:02:21.5]} 11. Qb3
{[%clk 0:02:45.9]} 11... b5 {[%clk 0:02:16.4]} 12. Qxa4 {[%clk 0:02:44.2]} 12...
bxa4 {[%clk 0:02:15.5]} 13. Rb1 {[%clk 0:02:39.9]} 13... h5 {[%clk 0:02:07.4]}
14. O-O {[%clk 0:02:38.4]} 14... Nf5 {[%clk 0:02:06]} 15. dxc5 {[%clk
0:02:37.1]} 15... Nfe7 {[%clk 0:01:52.2]} 16. Rb6 {[%clk 0:02:34.4]} 16... Kd7
{[%clk 0:01:46.4]} 17. c4 {[%clk 0:02:21.7]} 17... Ng6 {[%clk 0:01:43.9]} 18.
cxd5 {[%clk 0:02:20.9]} 18... exd5 {[%clk 0:01:42.8]} 19. Bc3 {[%clk 0:02:18.6]}
19... Re8 {[%clk 0:01:39.4]} 20. Re1 {[%clk 0:02:04.9]} 20... Kc7 {[%clk
0:01:34.4]} 21. Bd3 {[%clk 0:01:56.2]} 21... Nf4 {[%clk 0:01:25.6]} 22. Bf1
{[%clk 0:01:54.8]} 22... Ne6 {[%clk 0:01:21.8]} 23. Rbb1 {[%clk 0:01:30]} 23...
d4 {[%clk 0:01:14.2]} 24. Ba1 {[%clk 0:01:28.8]} 24... Bb7 {[%clk 0:01:09.6]}
25. Red1 {[%clk 0:01:25]} 25... Rad8 {[%clk 0:01:08.1]} 26. Bc4 {[%clk 0:01:24]}
26... Nxc5 {[%clk 0:00:55.8]} 27. Bxf7 {[%clk 0:01:21.9]} 27... Re7 {[%clk
0:00:54.7]} 28. Bxh5 {[%clk 0:01:18.1]} 28... Nxe5 {[%clk 0:00:42.7]} 29. Nxd4
{[%clk 0:01:14.7]} 29... Nc4 {[%clk 0:00:33.2]} 30. Nf5 {[%clk 0:01:10.4]} 30...
Red7 {[%clk 0:00:28.9]} 31. Rxd7+ {[%clk 0:01:07.3]} 31... Rxd7 {[%clk
0:00:28.2]} 32. Nxg7 {[%clk 0:01:02.7]} 32... Nxa3 {[%clk 0:00:27.5]} 33. Rc1
{[%clk 0:00:59.3]} 33... Ne4 {[%clk 0:00:26.4]} 34. Ne6+ {[%clk 0:00:56.3]}
34... Kb8 {[%clk 0:00:24.5]} 35. Bf3 {[%clk 0:00:50.6]} 35... Nd2 {[%clk
0:00:19.2]} 36. Bxb7 {[%clk 0:00:49]} 36... Rxb7 {[%clk 0:00:18.1]} 37. Nc5
{[%clk 0:00:47.8]} 37... Rb4 {[%clk 0:00:14]} 38. Bc3 {[%clk 0:00:41.8]} 38...
Rc4 {[%clk 0:00:13.5]} 39. Nxa6+ {[%clk 0:00:39.9]} 39... Ka7 {[%clk 0:00:12.8]}
40. Bxd2 {[%clk 0:00:39.3]} 40... Kxa6 {[%clk 0:00:11.9]} 41. c3 {[%clk
0:00:36.6]} 41... Nb5 {[%clk 0:00:10.5]} 42. f4 {[%clk 0:00:35.1]} 42... a3
{[%clk 0:00:10]} 43. g4 {[%clk 0:00:34.2]} 43... a2 {[%clk 0:00:09.6]} 44. g5
{[%clk 0:00:34.3]} 44... Na3 {[%clk 0:00:08.3]} 45. Ra1 {[%clk 0:00:32]} 45...
Nb5 {[%clk 0:00:02.4]} 46. Rxa2+ {[%clk 0:00:30.8]} 1-0

[Event "*** Titled Tuesday Blitz"]
[Site "Chess.com"]
[Date "2020.05.19"]
[Round "2"]
[White "Artem_Sadovsky"]
[Black "gena217"]
[Result "0-1"]
[WhiteElo "2538"]
[BlackElo "2863"]
[TimeControl "180+1"]
[EndTime "12:18:52 PDT"]
[Termination "gena217 won on time"]

1. Nf3 {[%clk 0:02:57.6]} 1... d5 {[%clk 0:02:59.3]} 2. g3 {[%clk 0:02:57.2]}
2... Nd7 {[%clk 0:02:59.9]} 3. Bg2 {[%clk 0:02:57.6]} 3... e5 {[%clk 0:03:00.1]}
4. O-O {[%clk 0:02:57.1]} 4... Ngf6 {[%clk 0:03:00.6]} 5. c4 {[%clk 0:02:55.7]}
5... dxc4 {[%clk 0:02:59.9]} 6. Qa4 {[%clk 0:02:45.8]} 6... e4 {[%clk
0:02:55.5]} 7. Ng5 {[%clk 0:02:37.8]} 7... Qe7 {[%clk 0:02:04]} 8. Nc3 {[%clk
0:02:37.3]} 8... c6 {[%clk 0:01:58.3]} 9. Ngxe4 {[%clk 0:02:06.7]} 9... Nxe4
{[%clk 0:01:42.8]} 10. Nxe4 {[%clk 0:02:07.6]} 10... Nb6 {[%clk 0:01:38]} 11.
Qa5 {[%clk 0:02:02.8]} 11... f5 {[%clk 0:01:22.6]} 12. Nc3 {[%clk 0:01:54]}
12... g6 {[%clk 0:01:22.5]} 13. b3 {[%clk 0:01:33.6]} 13... Bg7 {[%clk
0:01:22.1]} 14. Bb2 {[%clk 0:01:29.5]} 14... O-O {[%clk 0:01:20.5]} 15. Ba3
{[%clk 0:01:18.9]} 15... Qf7 {[%clk 0:01:16.1]} 16. Bxf8 {[%clk 0:01:17.6]}
16... Bxf8 {[%clk 0:01:17]} 17. Rab1 {[%clk 0:01:08.9]} 17... Be6 {[%clk
0:01:11.4]} 18. Rfd1 {[%clk 0:00:49.8]} 18... cxb3 {[%clk 0:01:08.9]} 19. axb3
{[%clk 0:00:50.7]} 19... Bxb3 {[%clk 0:01:08.3]} 20. Rxb3 {[%clk 0:00:51.6]}
20... Qxb3 {[%clk 0:01:07.8]} 21. Rb1 {[%clk 0:00:52.5]} 21... Qa3 {[%clk
0:00:59.6]} 22. Qe5 {[%clk 0:00:37.2]} 22... Qe7 {[%clk 0:00:54.7]} 23. Qa5
{[%clk 0:00:30.9]} 23... Nc4 {[%clk 0:00:33.4]} 24. Qa2 {[%clk 0:00:28]} 24...
Qf7 {[%clk 0:00:33.6]} 25. Rxb7 {[%clk 0:00:17.9]} 25... Qxb7 {[%clk 0:00:32.9]}
26. Qxc4+ {[%clk 0:00:18.8]} 26... Kh8 {[%clk 0:00:26.4]} 27. Bxc6 {[%clk
0:00:17.9]} 27... Rc8 {[%clk 0:00:26.6]} 28. Qd4+ {[%clk 0:00:09.7]} 28... Qg7
{[%clk 0:00:26.9]} 29. Qa4 {[%clk 0:00:07.6]} 29... Bc5 {[%clk 0:00:20.1]} 30.
Kg2 {[%clk 0:00:06.7]} 30... Qd4 {[%clk 0:00:17.3]} 31. Qa6 {[%clk 0:00:02.5]}
31... Qxf2+ {[%clk 0:00:15.8]} 32. Kh3 {[%clk 0:00:02.9]} 32... Rd8 {[%clk
0:00:11.3]} 33. Bf3 {[%clk 0:00:02.6]} 33... Bb6 {[%clk 0:00:07.1]} 34. Qa3
{[%clk 0:00:02.2]} 34... Qd4 {[%clk 0:00:05.1]} 35. Qe7 {[%clk 0:00:02]} 35...
Qd6 {[%clk 0:00:05.7]} 36. Qf7 {[%clk 0:00:02.1]} 36... Rf8 {[%clk 0:00:06.3]}
37. Qb7 {[%clk 0:00:02.1]} 37... g5 {[%clk 0:00:06.5]} 38. Kg2 {[%clk
0:00:01.8]} 38... g4 {[%clk 0:00:06.9]} 39. Bd5 {[%clk 0:00:02.4]} 39... Qe5
{[%clk 0:00:06.8]} 40. e3 {[%clk 0:00:02.2]} 40... Bxe3 {[%clk 0:00:06.1]} 0-1

[Event "*** Titled Tuesday Blitz"]
[Site "Chess.com"]
[Date "2020.05.19"]
[Round "2"]
[White "VALPARAISO37"]
[Black "SketchyMoves"]
[Result "0-1"]
[WhiteElo "2316"]
[BlackElo "2623"]
[TimeControl "180+1"]
[EndTime "12:18:52 PDT"]
[Termination "SketchyMoves won by resignation"]

1. d4 {[%clk 0:03:00.9]} 1... e6 {[%clk 0:02:59.5]} 2. c4 {[%clk 0:03:00.6]}
2... Bb4+ {[%clk 0:02:59.1]} 3. Nc3 {[%clk 0:03:00.4]} 3... c5 {[%clk
0:02:57.7]} 4. a3 {[%clk 0:02:58.9]} 4... Bxc3+ {[%clk 0:02:57.3]} 5. bxc3
{[%clk 0:02:59.3]} 5... d6 {[%clk 0:02:57.9]} 6. e3 {[%clk 0:02:58.3]} 6... Nc6
{[%clk 0:02:57.6]} 7. Bd3 {[%clk 0:02:57.3]} 7... f5 {[%clk 0:02:54.3]} 8. Ne2
{[%clk 0:02:56.5]} 8... Nf6 {[%clk 0:02:53.9]} 9. O-O {[%clk 0:02:56.5]} 9... e5
{[%clk 0:02:49.3]} 10. f3 {[%clk 0:02:52.4]} 10... e4 {[%clk 0:02:43.8]} 11.
fxe4 {[%clk 0:02:52]} 11... fxe4 {[%clk 0:02:44.7]} 12. Bc2 {[%clk 0:02:52.2]}
12... O-O {[%clk 0:02:44.6]} 13. h3 {[%clk 0:02:50]} 13... b6 {[%clk 0:02:41.1]}
14. Ng3 {[%clk 0:02:48]} 14... Re8 {[%clk 0:02:37.9]} 15. Rxf6 {[%clk
0:02:38.7]} 15... Qxf6 {[%clk 0:02:25.1]} 16. Bxe4 {[%clk 0:02:38.9]} 16... Bb7
{[%clk 0:02:17.9]} 17. Bd5+ {[%clk 0:02:29.6]} 17... Kh8 {[%clk 0:02:17.1]} 18.
e4 {[%clk 0:02:20.2]} 18... Na5 {[%clk 0:02:07.6]} 19. Nh5 {[%clk 0:02:18.2]}
19... Qh4 {[%clk 0:01:51.2]} 20. Bxb7 {[%clk 0:01:20.3]} 20... Nxb7 {[%clk
0:01:52.1]} 21. Nf4 {[%clk 0:01:20.1]} 21... Rxe4 {[%clk 0:01:36.4]} 22. Qf3
{[%clk 0:01:10]} 22... Rae8 {[%clk 0:01:25.8]} 23. Kh2 {[%clk 0:01:07.1]} 23...
Qf6 {[%clk 0:01:17.8]} 24. Bd2 {[%clk 0:00:42.8]} 24... Na5 {[%clk 0:01:17.4]}
25. Qh5 {[%clk 0:00:33.2]} 25... Nxc4 {[%clk 0:00:59.4]} 26. Bc1 {[%clk
0:00:25.5]} 26... cxd4 {[%clk 0:00:47.5]} 27. cxd4 {[%clk 0:00:24.5]} 27... g6
{[%clk 0:00:35.9]} 28. Qh6 {[%clk 0:00:20.9]} 28... Qg7 {[%clk 0:00:28.2]} 29.
Qg5 {[%clk 0:00:20.4]} 29... Re1 {[%clk 0:00:21.1]} 30. Rb1 {[%clk 0:00:19.5]}
30... Ne3 {[%clk 0:00:20.3]} 31. Bxe3 {[%clk 0:00:17.8]} 31... Rxb1 {[%clk
0:00:20.4]} 32. Bd2 {[%clk 0:00:17.9]} 32... Rb3 {[%clk 0:00:17.9]} 33. d5
{[%clk 0:00:16.7]} 33... Qe5 {[%clk 0:00:16.3]} 34. Qh6 {[%clk 0:00:16.4]} 34...
Rb2 {[%clk 0:00:09.2]} 35. Kh1 {[%clk 0:00:16.3]} 35... Kg8 {[%clk 0:00:09.2]}
36. Nxg6 {[%clk 0:00:16]} 36... Rb1+ {[%clk 0:00:09]} 37. Bc1 {[%clk 0:00:14.1]}
37... Rxc1+ {[%clk 0:00:09.3]} 38. Qxc1 {[%clk 0:00:13.1]} 38... hxg6 {[%clk
0:00:10.2]} 39. Qh6 {[%clk 0:00:12.9]} 39... Qe1+ {[%clk 0:00:10.1]} 40. Kh2
{[%clk 0:00:13.6]} 40... Qe5+ {[%clk 0:00:10.2]} 41. Kh1 {[%clk 0:00:14.3]}
41... Qg7 {[%clk 0:00:10.4]} 42. Qd2 {[%clk 0:00:13.9]} 42... Re4 {[%clk
0:00:09.5]} 43. Qd3 {[%clk 0:00:12.9]} 43... Qa1+ {[%clk 0:00:08.8]} 44. Kh2
{[%clk 0:00:12.7]} 44... Qe5+ {[%clk 0:00:08.8]} 45. Kg1 {[%clk 0:00:12.7]}
45... Qd4+ {[%clk 0:00:07.2]} 46. Qe3 {[%clk 0:00:12.5]} 46... Qxe3+ {[%clk
0:00:07.1]} 47. Kh2 {[%clk 0:00:12.4]} 47... Qf4+ {[%clk 0:00:07.1]} 48. g3
{[%clk 0:00:12]} 48... Qf2+ {[%clk 0:00:07.3]} 0-1

[Event "*** Titled Tuesday Blitz"]
[Site "Chess.com"]
[Date "2020.05.19"]
[Round "2"]
[White "KuzubovYuriy"]
[Black "GlennTipton"]
[Result "1-0"]
[WhiteElo "2710"]
[BlackElo "2477"]
[TimeControl "180+1"]
[EndTime "12:18:53 PDT"]
[Termination "KuzubovYuriy won by resignation"]

1. d4 {[%clk 0:03:00.9]} 1... Nf6 {[%clk 0:02:59.5]} 2. c4 {[%clk 0:02:59.6]}
2... c5 {[%clk 0:02:59.2]} 3. d5 {[%clk 0:02:59.4]} 3... e6 {[%clk 0:02:59.1]}
4. Nc3 {[%clk 0:02:59.2]} 4... exd5 {[%clk 0:02:59.3]} 5. cxd5 {[%clk
0:03:00.1]} 5... d6 {[%clk 0:02:59.6]} 6. e4 {[%clk 0:03:00.8]} 6... g6 {[%clk
0:02:59.5]} 7. f4 {[%clk 0:03:01.5]} 7... Bg7 {[%clk 0:02:59.7]} 8. Bb5+ {[%clk
0:03:02.2]} 8... Nfd7 {[%clk 0:02:59.3]} 9. a4 {[%clk 0:03:02.7]} 9... O-O
{[%clk 0:02:58.9]} 10. Nf3 {[%clk 0:03:03]} 10... Nb6 {[%clk 0:02:44.8]} 11. O-O
{[%clk 0:02:59.1]} 11... Bg4 {[%clk 0:02:44]} 12. h3 {[%clk 0:02:46]} 12... Bxf3
{[%clk 0:02:37.4]} 13. Qxf3 {[%clk 0:02:46.9]} 13... Na6 {[%clk 0:02:29.8]} 14.
f5 {[%clk 0:02:29.5]} 14... Nd7 {[%clk 0:02:17.7]} 15. Bxd7 {[%clk 0:02:26.4]}
15... Qxd7 {[%clk 0:02:17]} 16. f6 {[%clk 0:02:25.9]} 16... Bh8 {[%clk
0:02:17.1]} 17. e5 {[%clk 0:01:54.8]} 17... dxe5 {[%clk 0:02:10.2]} 18. Bh6
{[%clk 0:01:54.8]} 18... Rfe8 {[%clk 0:01:55.5]} 19. Rad1 {[%clk 0:01:49.5]}
19... Nb4 {[%clk 0:01:43.9]} 20. Ne4 {[%clk 0:01:27.2]} 20... Rad8 {[%clk
0:01:28]} 21. Bg7 {[%clk 0:01:02.6]} 21... Nxd5 {[%clk 0:01:09.7]} 22. Bxh8
{[%clk 0:00:39.1]} 22... Kxh8 {[%clk 0:01:08.8]} 23. Qg3 {[%clk 0:00:39.4]}
23... Qxa4 {[%clk 0:00:51.6]} 24. Ng5 {[%clk 0:00:14.2]} 24... Nf4 {[%clk
0:00:27]} 25. Nxf7+ {[%clk 0:00:11.1]} 25... Kg8 {[%clk 0:00:26.9]} 26. Nh6+
{[%clk 0:00:11.1]} 26... Kf8 {[%clk 0:00:26.3]} 27. Rde1 {[%clk 0:00:09.9]}
27... Rd2 {[%clk 0:00:22.9]} 28. Rf2 {[%clk 0:00:06.7]} 28... Qd4 {[%clk
0:00:21.3]} 29. Ng4 {[%clk 0:00:04.6]} 29... Ne2+ {[%clk 0:00:18.6]} 30. Rxe2
{[%clk 0:00:03.6]} 30... Rxe2 {[%clk 0:00:19.5]} 31. Qh4 {[%clk 0:00:03.9]}
31... h5 {[%clk 0:00:19.8]} 32. f7 {[%clk 0:00:04.2]} 32... Qd1+ {[%clk
0:00:18.6]} 33. Kh2 {[%clk 0:00:03.9]} 33... Rxf2 {[%clk 0:00:18]} 34. fxe8=Q+
{[%clk 0:00:03.3]} 34... Kxe8 {[%clk 0:00:18.8]} 35. Nxf2 {[%clk 0:00:03.2]}
35... Qd6 {[%clk 0:00:19.4]} 36. Ne4 {[%clk 0:00:03.2]} 36... Kd7 {[%clk
0:00:20.3]} 37. Nxd6 {[%clk 0:00:03]} 37... Kxd6 {[%clk 0:00:21]} 38. Qg5 {[%clk
0:00:03.5]} 38... c4 {[%clk 0:00:21.9]} 39. Qxg6+ {[%clk 0:00:04.4]} 39... Kd5
{[%clk 0:00:22.8]} 40. Qxh5 {[%clk 0:00:05.3]} 40... b5 {[%clk 0:00:23.7]} 41.
Qd1+ {[%clk 0:00:05.6]} 41... Kc5 {[%clk 0:00:23.8]} 42. h4 {[%clk 0:00:06.5]}
42... b4 {[%clk 0:00:24.7]} 43. h5 {[%clk 0:00:07]} 43... a5 {[%clk 0:00:25.5]}
44. h6 {[%clk 0:00:07]} 1-0